[Event "FIDE Womens World Cup 2021"]
[Site "Sochi"]
[Date "2021.07.12"]
[Round "1.35"]
[White "Majdan, Joanna"]
[Black "Gaponenko, Inna"]
[Result "0-1"]
[ECO "B80"]
[WhiteElo "2339"]
[BlackElo "2357"]
[Annotator "NA"]
[PlyCount "89"]
[EventDate "2021.07.12"]
[EventType "k.o."]
[EventCountry "RUS"]
[SourceTitle "playchess.com"]
[Source "ChessBase"]
[SourceQuality "1"]
[TimeControl "40/5400+30:1800+30"]

1. e4 {[%emt 0:00:03]} c5 {[%emt 0:00:07]} 2. Nf3 {[%emt 0:00:11]} e6 {[%emt 0:00:14]} 3. d4 {[%emt 0:00:10]} cxd4 {[%emt 0:00:08]} 4. Nxd4 {[%emt 0:00:09]} Nf6 {[%emt 0:00:32]} 5. Nc3 {[%emt 0:00:26]} d6 {[%emt 0:00:16]} 6. Bg5 {[%emt 0:03:51]} h6 {[%emt 0:02:37]} 7. Bh4 {[%emt 0:00:39]} Nc6 {[%emt 0:06:29]} 8. Qd3 {[%emt 0:09:51]} Qb6 {[%emt 0:38:48]} 9. Bxf6 $11 {[%emt 0:03:18]} gxf6 {[%emt 0:00:14]} 10. Nb3 {[%emt 0:00:12]} Bd7 {[%emt 0:18:44]} 11. f4 {[%emt 0:06:00]} O-O-O {[%emt 0:01:05]} 12. O-O-O {[%emt 0:06:55]} Kb8 {[%emt 0:14:34]} 13. Be2 {[%emt 0:03:10]} h5 {[%emt 0:00:34]} 14. Rhf1 {[%emt 0:08:21]} h4 {[%emt 0:03:15]} 15. Kb1 {[%emt 0:06:30]} Be7 {[%emt 0:00:12]} 16. f5 {[%emt 0:03:33]} Ne5 {[%emt 0:05:53]} 17. Qh3 {[%emt 0:00:27]} Bc8 {[%emt 0:01:35]} 18. Rf4 {[%emt 0:08:09]} d5 {[%emt 0:02:36]} 19. exd5 {[%emt 0:01:34]} exf5 {[%emt 0:00:01]} 20. Na4 {[%emt 0:09:13]} Qc7 {[%emt 0:01:16]} 21. Qe3 {[%emt 0:04:56]} Bd6 {[%emt 0:00:10]} 22. Rfd4 {[%emt 0:01:07]} Ng4 {[%emt 0:01:04]} 23. Qd2 {[%emt 0:02:45]} Nf2 {[%emt 0:00:18]} 24. Rf1 {[%emt 0:05:27]} Ne4 {[%emt 0:00:02]} 25. Qd1 {[%emt 0:01:05]} Bxh2 {[%emt 0:00:24]} 26. Bf3 {[%emt 0:02:39]} Be5 {[%emt 0:00:20]} 27. Bxe4 {[%emt 0:03:09]} Bxd4 {[%emt 0:01:12]} 28. Qxd4 {[%emt 0:00:24]} fxe4 {[%emt 0:00:05]} 29. Rxf6 {[%emt 0:01:56]} e3 {[%emt 0:00:41]} 30. Nc3 {[%emt 0:01:05]} a6 {[%emt 0:01:24]} 31. Qxe3 {[%emt 0:01:03]} Rde8 {[%emt 0:00:31]} 32. Qd2 {[%emt 0:02:06]} Qe7 {[%emt 0:00:14]} 33. Rf1 {[%emt 0:01:23]} Qe3 {[%emt 0:00:22]} 34. Qd1 {[%emt 0:00:04]} Qg3 {[%emt 0:00:39]} 35. d6 {[%emt 0:00:40]} Qxg2 {[%emt 0:00:20]} 36. Rxf7 {[%emt 0:02:12]} h3 {[%emt 0:00:17]} 37. d7 {[%emt 0:00:44]} Bxd7 {[%emt 0:00:08]} 38. Qd6+ {[%emt 0:01:21]} Ka8 {[%emt 0:00:46]} 39. Nd5 {[%emt 0:00:00]} Rc8 {[%emt 0:01:16]} 40. Nb6+ {[%emt 0:01:47]} Ka7 {[%emt 0:00:03]} 41. Nxc8+ {[%emt 0:30:35]} Rxc8 {[%emt 0:30:34]} 42. Qd4+ {[%emt 0:00:00]} Ka8 {[%emt 0:00:00]} 43. Rf2 {[%emt 0:00:00]} Qg1+ {[%emt 0:00:00]} 44. Nc1 {[%emt 0:00:00]} h2 {[%emt 0:00:00]} 45. Qd1 0-1

[Event "FIDE Womens World Cup 2021"]
[Site "Sochi"]
[Date "2021.07.12"]
[Round "1.36"]
[White "Injac, Teodora"]
[Black "Belenkaya, Dina"]
[Result "1-0"]
[ECO "E11"]
[WhiteElo "2370"]
[BlackElo "2341"]
[Annotator "NA"]
[PlyCount "155"]
[EventDate "2021.07.12"]
[EventType "k.o."]
[EventCountry "RUS"]
[SourceTitle "playchess.com"]
[Source "ChessBase"]
[SourceQuality "1"]
[TimeControl "40/5400+30:1800+30"]

1. d4 {[%emt 0:00:05]} Nf6 {[%emt 0:00:20]} 2. c4 {[%emt 0:00:37]} e6 {[%emt 0:00:25]} 3. Nf3 {[%emt 0:00:18]} Bb4+ {[%emt 0:00:16]} 4. Bd2 {[%emt 0:01:44]} a5 {[%emt 0:01:42]} 5. a3 {[%emt 0:02:11]} Bxd2+ {[%emt 0:02:01]} 6. Qxd2 {[%emt 0:00:05]} d6 {[%emt 0:02:03]} 7. Nc3 {[%emt 0:05:15]} Nc6 {[%emt 0:05:03]} 8. e4 {[%emt 0:17:09]} e5 {[%emt 0:07:24]} 9. dxe5 {[%emt 0:07:31]} dxe5 {[%emt 0:05:18]} 10. Qxd8+ {[%emt 0:01:53]} Kxd8 {[%emt 0:00:11]} 11. O-O-O+ {[%emt 0:02:37]} Bd7 {[%emt 0:00:19]} 12. c5 {[%emt 0:05:24]} Kc8 {[%emt 0:02:07]} 13. Bc4 {[%emt 0:23:40]} Be6 {[%emt 0:01:39]} 14. Bxe6+ {[%emt 0:04:27]} fxe6 {[%emt 0:00:02]} 15. Rd3 {[%emt 0:08:00]} a4 {[%emt 0:02:59]} 16. Rhd1 {[%emt 0:01:07]} Ra5 {[%emt 0:02:14]} 17. Kb1 {[%emt 0:01:24]} Rxc5 {[%emt 0:12:15]} 18. Ng5 {[%emt 0:02:03]} Rc4 {[%emt 0:21:33]} 19. Nxe6 {[%emt 0:00:35]} b6 {[%emt 0:13:07]} 20. f3 {[%emt 0:01:28]} Re8 {[%emt 0:05:48]} 21. Nxg7 {[%emt 0:00:51]} Rg8 {[%emt 0:00:19]} 22. Nf5 {[%emt 0:00:26]} Kb7 {[%emt 0:04:08]} 23. g3 {[%emt 0:04:12]} Rf8 {[%emt 0:02:36]} 24. g4 {[%emt 0:01:14]} Ka6 {[%emt 0:07:42]} 25. g5 {[%emt 0:01:54]} Ne8 {[%emt 0:00:12]} 26. Rd7 {[%emt 0:01:23]} Nd4 {[%emt 0:00:14]} 27. Nxd4 {[%emt 0:01:09]} exd4 {[%emt 0:00:05]} 28. R1xd4 {[%emt 0:00:21]} Rxd4 {[%emt 0:00:16]} 29. Rxd4 {[%emt 0:00:01]} Rxf3 {[%emt 0:00:13]} 30. Rd7 {[%emt 0:00:57]} Rf1+ {[%emt 0:02:06]} 31. Ka2 {[%emt 0:00:54]} Nd6 {[%emt 0:00:30]} 32. Rxc7 {[%emt 0:01:16]} Nf7 {[%emt 0:00:24]} 33. h4 {[%emt 0:00:44]} b5 {[%emt 0:00:01]} 34. Rc6+ {[%emt 0:00:24]} Kb7 {[%emt 0:00:02]} 35. Re6 {[%emt 0:02:48]} Nd8 {[%emt 0:01:44]} 36. Re5 {[%emt 0:00:29]} Rh1 {[%emt 0:00:38]} 37. Rxb5+ {[%emt 0:00:18]} Kc6 {[%emt 0:00:01]} 38. Rd5 {[%emt 0:00:58]} Ne6 {[%emt 0:00:03]} 39. Nxa4 {[%emt 0:01:23]} Rxh4 {[%emt 0:00:03]} 40. Nc3 {[%emt 0:00:30]} Rg4 {[%emt 0:00:09]} 41. e5 {[%emt 0:30:35]} Nxg5 {[%emt 0:30:33]} 42. Rd6+ {[%emt 0:00:06]} Kc5 {[%emt 0:01:41]} 43. Rh6 {[%emt 0:00:28]} Rg3 {[%emt 0:00:00]} 44. Rxh7 {[%emt 0:00:00]} Re3 {[%emt 0:00:00]} 45. Rh5 {[%emt 0:00:00]} Ne6 {[%emt 0:00:00]} 46. Rh4 {[%emt 0:00:00]} Rxe5 {[%emt 0:00:00]} 47. Re4 {[%emt 0:00:00]} Rxe4 {[%emt 0:00:00]} 48. Nxe4+ {[%emt 0:00:00]} Kd4 {[%emt 0:00:00]} 49. Nd2 {[%emt 0:00:00]} Kd3 {[%emt 0:00:00]} 50. Nb3 {[%emt 0:00:00]} Kc4 {[%emt 0:00:00]} 51. Nd2+ {[%emt 0:00:00]} Kd3 {[%emt 0:00:00]} 52. Nf3 {[%emt 0:00:50]} Kc4 {[%emt 0:00:00]} 53. b3+ {[%emt 0:02:56]} Kc3 {[%emt 0:00:00]} 54. b4 {[%emt 0:00:48]} Nc7 {[%emt 0:00:23]} 55. Ne5 {[%emt 0:01:00]} Nd5 {[%emt 0:03:11]} 56. Nc6 {[%emt 0:00:02]} Kc4 {[%emt 0:00:22]} 57. Kb2 {[%emt 0:00:19]} Kb5 {[%emt 0:00:52]} 58. Nd4+ {[%emt 0:00:09]} Ka4 {[%emt 0:01:45]} 59. Nc2 {[%emt 0:00:20]} Nc7 {[%emt 0:01:23]} 60. Kc3 {[%emt 0:00:22]} Nb5+ {[%emt 0:00:16]} 61. Kc4 {[%emt 0:01:06]} Nd6+ {[%emt 0:00:03]} 62. Kd5 {[%emt 0:01:42]} Nb5 {[%emt 0:00:19]} 63. Kc5 {[%emt 0:00:06]} Nc3 {[%emt 0:00:20]} 64. Nd4 {[%emt 0:00:36]} Ne4+ {[%emt 0:01:03]} 65. Kc6 {[%emt 0:00:33]} Kxa3 {[%emt 0:01:49]} 66. b5 {[%emt 0:00:04]} Kb4 {[%emt 0:00:10]} 67. b6 {[%emt 0:00:50]} Nc5 {[%emt 0:00:20]} 68. Nc2+ {[%emt 0:00:59]} Kc4 {[%emt 0:00:04]} 69. Ne3+ {[%emt 0:00:19]} Kb4 {[%emt 0:00:47]} 70. Nd5+ {[%emt 0:00:41]} Kc4 {[%emt 0:00:06]} 71. Ne7 {[%emt 0:00:28]} Kb4 {[%emt 0:01:03]} 72. Nc8 {[%emt 0:00:28]} Kc4 {[%emt 0:00:37]} 73. Nd6+ {[%emt 0:00:14]} Kb4 {[%emt 0:00:12]} 74. Ne4 {[%emt 0:00:55]} Ne6 {[%emt 0:00:49]} 75. Kd7 {[%emt 0:00:12]} Nf8+ {[%emt 0:01:08]} 76. Ke7 {[%emt 0:00:30]} Ng6+ {[%emt 0:00:05]} 77. Kd6 {[%emt 0:00:18]} Ka5 {[%emt 0:00:50]} 78. b7 {[%emt 0:00:04]} 1-0

[Event "FIDE Womens World Cup 2021"]
[Site "Sochi"]
[Date "2021.07.12"]
[Round "1.37"]
[White "Tokhirjonova, Gulrukhbegim"]
[Black "Lujan, Carolina"]
[Result "1-0"]
[ECO "B24"]
[WhiteElo "2320"]
[BlackElo "2346"]
[Annotator "NA"]
[PlyCount "129"]
[EventDate "2021.07.12"]
[EventType "k.o."]
[EventCountry "RUS"]
[SourceTitle "playchess.com"]
[Source "ChessBase"]
[SourceQuality "1"]
[TimeControl "40/5400+30:1800+30"]

1. e4 {[%emt 0:00:22]} c5 {[%emt 0:00:18]} 2. Nc3 {[%emt 0:00:39]} Nc6 {[%emt 0:01:11]} 3. Nf3 {[%emt 0:00:52]} e5 {[%emt 0:04:50]} 4. Bc4 {[%emt 0:01:24]} Be7 {[%emt 0:00:25]} 5. d3 {[%emt 0:00:42]} Nf6 {[%emt 0:07:06]} 6. Ng5 {[%emt 0:04:08]} O-O {[%emt 0:00:23]} 7. h4 {[%emt 0:01:42]} Nb4 {[%emt 0:34:51]} 8. a3 {[%emt 0:06:52]} d5 {[%emt 0:02:19]} 9. Bb3 {[%emt 0:01:20]} c4 {[%emt 0:06:06]} 10. dxc4 {[%emt 0:04:02]} dxc4 {[%emt 0:03:38]} 11. Bxc4 {[%emt 0:11:14]} Qxd1+ {[%emt 0:04:53]} 12. Kxd1 {[%emt 0:00:14]} Ng4 {[%emt 0:08:43]} 13. Rf1 {[%emt 0:09:42]} Nc6 {[%emt 0:03:40]} 14. Nd5 {[%emt 0:07:13]} h6 {[%emt 0:05:19]} 15. Nxe7+ {[%emt 0:14:23]} Nxe7 {[%emt 0:00:05]} 16. Nf3 {[%emt 0:00:11]} Kh8 {[%emt 0:01:29]} 17. Bd2 {[%emt 0:06:08]} f5 {[%emt 0:02:49]} 18. Bb4 {[%emt 0:09:12]} Rd8+ {[%emt 0:02:01]} 19. Nd2 {[%emt 0:10:16]} Nc6 {[%emt 0:01:41]} 20. Bd3 {[%emt 0:03:42]} Nh2 {[%emt 0:04:44]} 21. Rh1 {[%emt 0:00:16]} Ng4 {[%emt 0:00:03]} 22. Ke1 {[%emt 0:01:20]} f4 {[%emt 0:01:45]} 23. Bc3 {[%emt 0:01:41]} Be6 {[%emt 0:01:13]} 24. Ke2 {[%emt 0:01:35]} Nd4+ {[%emt 0:00:59]} 25. Bxd4 {[%emt 0:00:32]} Rxd4 {[%emt 0:00:02]} 26. Rag1 {[%emt 0:01:09]} Rc8 {[%emt 0:01:26]} 27. g3 {[%emt 0:01:54]} fxg3 {[%emt 0:00:49]} 28. Rxg3 {[%emt 0:00:03]} Rf8 {[%emt 0:01:02]} 29. Rf1 {[%emt 0:01:20]} Rd7 {[%emt 0:00:26]} 30. f3 {[%emt 0:00:42]} Nf6 {[%emt 0:00:12]} 31. Bb5 {[%emt 0:00:29]} Nh5 {[%emt 0:00:51]} 32. Rgg1 {[%emt 0:00:12]} Nf4+ {[%emt 0:00:11]} 33. Ke3 {[%emt 0:00:07]} Rc7 {[%emt 0:00:14]} 34. Rc1 {[%emt 0:00:50]} Rfc8 {[%emt 0:00:18]} 35. c3 {[%emt 0:00:47]} a6 {[%emt 0:00:17]} 36. Be2 {[%emt 0:00:25]} Rd8 {[%emt 0:01:29]} 37. Rcd1 {[%emt 0:00:39]} Rcd7 {[%emt 0:00:22]} 38. a4 {[%emt 0:00:31]} Kh7 {[%emt 0:00:38]} 39. a5 {[%emt 0:00:31]} Rc8 {[%emt 0:00:14]} 40. Ra1 {[%emt 0:00:34]} Rcd8 {[%emt 0:00:21]} 41. Rad1 {[%emt 0:02:16]} Rc8 {[%emt 0:08:57]} 42. Nb1 {[%emt 0:09:54]} Rxd1 {[%emt 0:07:44]} 43. Rxd1 {[%emt 0:03:30]} Rc5 {[%emt 0:02:15]} 44. b4 {[%emt 0:01:17]} Rc7 {[%emt 0:00:09]} 45. Rc1 {[%emt 0:00:49]} Ng2+ {[%emt 0:04:36]} 46. Kf2 {[%emt 0:00:36]} Nxh4 {[%emt 0:00:03]} 47. c4 {[%emt 0:00:16]} Ng6 {[%emt 0:00:42]} 48. Bf1 {[%emt 0:03:52]} Nf4 {[%emt 0:02:57]} 49. c5 {[%emt 0:03:28]} Bd7 {[%emt 0:07:12]} 50. Na3 {[%emt 0:00:46]} Kg6 {[%emt 0:00:30]} 51. Nc4 {[%emt 0:00:44]} Kf6 {[%emt 0:00:14]} 52. Rd1 {[%emt 0:00:14]} Bb5 {[%emt 0:00:33]} 53. Rd6+ {[%emt 0:01:48]} Ne6 {[%emt 0:00:27]} 54. Nb6 {[%emt 0:01:34]} Rc6 {[%emt 0:00:29]} 55. Nd7+ {[%emt 0:01:15]} Kg5 {[%emt 0:00:52]} 56. Bxb5 {[%emt 0:00:51]} Rxd6 {[%emt 0:00:41]} 57. cxd6 {[%emt 0:00:01]} axb5 {[%emt 0:00:08]} 58. Nxe5 {[%emt 0:00:13]} Nd8 {[%emt 0:00:38]} 59. Nd3 {[%emt 0:00:18]} Kf6 {[%emt 0:00:30]} 60. Nc5 {[%emt 0:02:19]} Nc6 {[%emt 0:00:13]} 61. Nxb7 {[%emt 0:00:43]} Ke6 {[%emt 0:00:03]} 62. a6 {[%emt 0:00:20]} Kd7 {[%emt 0:00:38]} 63. e5 {[%emt 0:00:47]} g5 {[%emt 0:00:21]} 64. Nc5+ {[%emt 0:00:34]} Kc8 {[%emt 0:00:07]} 65. e6 {[%emt 0:00:07]} 1-0

[Event "FIDE Womens World Cup 2021"]
[Site "Sochi"]
[Date "2021.07.15"]
[Round "2.1"]
[White "Muzychuk, Anna"]
[Black "Abrahamyan, Tatev"]
[Result "1-0"]
[ECO "C19"]
[WhiteElo "2527"]
[BlackElo "2352"]
[Annotator "ChessBase"]
[PlyCount "175"]
[EventDate "2021.07.12"]
[EventType "k.o."]
[EventCountry "RUS"]
[SourceTitle "playchess.com"]
[Source "ChessBase"]
[SourceQuality "1"]
[TimeControl "40/5400+30:1800+30"]

1. e4 {[%emt 0:00:03]} e6 {[%emt 0:00:05]} 2. d4 {[%emt 0:00:07]} d5 {[%emt 0:00:05]} 3. Nc3 {[%emt 0:00:06]} Bb4 {[%emt 0:00:07]} 4. e5 {[%emt 0:00:06]} c5 {[%emt 0:00:08]} 5. a3 {[%emt 0:00:11]} Bxc3+ {[%emt 0:00:05]} 6. bxc3 {[%emt 0:00:07]} Ne7 {[%emt 0:00:09]} 7. a4 {[%emt 0:00:17]} Qc7 {[%emt 0:01:03]} 8. Nf3 {[%emt 0:01:25]} h6 {[%emt 0:00:53]} 9. h4 {[%emt 0:01:05]} b6 {[%emt 0:07:19]} 10. Bb5+ {[%emt 0:01:27]} Bd7 {[%emt 0:04:38]} 11. Be2 {[%emt 0:02:44]} Nbc6 {[%emt 0:15:27]} 12. O-O {[%emt 0:04:45]} O-O {[%emt 0:05:12]} 13. Bf4 {[%emt 0:10:24]} f5 {[%emt 0:09:10]} 14. exf6 {[%emt 0:05:10]} Qxf4 {[%emt 0:01:28]} 15. fxe7 {[%emt 0:00:04]} Rf7 {[%emt 0:02:17]} 16. Bb5 {[%emt 0:07:59]} Rxe7 {[%emt 0:03:40]} 17. Bxc6 {[%emt 0:03:56]} Bxc6 {[%emt 0:00:06]} 18. Ne5 {[%emt 0:03:15]} Be8 {[%emt 0:00:36]} 19. a5 {[%emt 0:12:06]} Rc8 {[%emt 0:13:05]} 20. axb6 {[%emt 0:05:48]} axb6 {[%emt 0:00:17]} 21. g3 {[%emt 0:08:22]} Qf5 {[%emt 0:08:41]} 22. Re1 {[%emt 0:06:09]} Rec7 {[%emt 0:10:10]} 23. Re3 {[%emt 0:03:05]} b5 {[%emt 0:09:36]} 24. dxc5 {[%emt 0:14:06]} Rxc5 {[%emt 0:00:24]} 25. Qd4 {[%emt 0:00:25]} R5c7 {[%emt 0:03:58]} 26. Ra6 {[%emt 0:03:42]} Qxc2 {[%emt 0:01:42]} 27. Rxe6 {[%emt 0:00:32]} Bf7 {[%emt 0:00:47]} 28. Rd6 {[%emt 0:04:37]} Ra8 {[%emt 0:01:37]} 29. Kg2 {[%emt 0:01:45]} Kh7 {[%emt 0:01:30]} 30. Rf3 {[%emt 0:00:59]} Bh5 {[%emt 0:00:22]} 31. g4 {[%emt 0:00:35]} Ra4 {[%emt 0:00:33]} 32. Qb6 {[%emt 0:00:25]} Bxg4 {[%emt 0:00:37]} 33. Qxc7 {[%emt 0:00:38]} Bxf3+ {[%emt 0:00:11]} 34. Nxf3 {[%emt 0:00:04]} Rg4+ {[%emt 0:00:39]} 35. Kh3 {[%emt 0:00:51]} Qf5 {[%emt 0:00:30]} 36. Rf6 {[%emt 0:00:12]} Rxh4+ {[%emt 0:00:34]} 37. Kxh4 {[%emt 0:00:06]} Qxf6+ {[%emt 0:00:02]} 38. Kg3 {[%emt 0:00:17]} Qg6+ {[%emt 0:00:46]} 39. Kh2 {[%emt 0:00:19]} Qh5+ {[%emt 0:00:48]} 40. Kg2 {[%emt 0:00:19]} b4 {[%emt 0:00:28]} 41. cxb4 {[%emt 0:05:42]} Qg4+ {[%emt 0:01:42]} 42. Qg3 {[%emt 0:00:03]} Qxb4 {[%emt 0:00:05]} 43. Qh4 {[%emt 0:03:16]} Qd6 {[%emt 0:10:05]} 44. Qg4 {[%emt 0:01:57]} Qg6 {[%emt 0:08:12]} 45. Kh3 {[%emt 0:00:55]} Qf6 {[%emt 0:01:17]} 46. Qh5 {[%emt 0:02:58]} Qe6+ {[%emt 0:04:09]} 47. Kg3 {[%emt 0:00:06]} Kg8 {[%emt 0:04:16]} 48. Qe5 {[%emt 0:04:00]} Kf7 {[%emt 0:00:59]} 49. Qf4+ {[%emt 0:02:13]} Qf6 {[%emt 0:00:55]} 50. Qc7+ {[%emt 0:02:47]} Kg8 {[%emt 0:00:06]} 51. Qb8+ {[%emt 0:02:11]} Kh7 {[%emt 0:00:09]} 52. Qe5 {[%emt 0:00:33]} Qg6+ {[%emt 0:00:42]} 53. Kf4 {[%emt 0:00:42]} Qc6 {[%emt 0:01:03]} 54. Qf5+ {[%emt 0:02:34]} Kg8 {[%emt 0:01:05]} 55. Nd4 {[%emt 0:00:24]} Qc7+ {[%emt 0:00:27]} 56. Kg4 {[%emt 0:05:15]} Qc4 {[%emt 0:01:42]} 57. Qe5 {[%emt 0:01:30]} Kh7 {[%emt 0:00:34]} 58. Qf4 {[%emt 0:01:35]} Qf1 {[%emt 0:00:45]} 59. Kf5 {[%emt 0:01:29]} Qe1 {[%emt 0:00:25]} 60. Qe3 {[%emt 0:00:44]} Qb1+ {[%emt 0:01:04]} 61. Ke5 {[%emt 0:00:15]} Qa2 {[%emt 0:00:17]} 62. Qf3 {[%emt 0:00:33]} Kh8 {[%emt 0:00:42]} 63. Ke6 {[%emt 0:00:53]} Kh7 {[%emt 0:00:39]} 64. Qf5+ {[%emt 0:00:19]} Kh8 {[%emt 0:00:34]} 65. Kd6 {[%emt 0:00:28]} Qa6+ {[%emt 0:00:40]} 66. Kxd5 {[%emt 0:00:25]} Qb7+ {[%emt 0:00:15]} 67. Ke5 {[%emt 0:00:18]} Qc7+ {[%emt 0:00:15]} 68. Ke4 {[%emt 0:00:09]} Qe7+ {[%emt 0:00:18]} 69. Kf3 {[%emt 0:00:15]} Qb7+ {[%emt 0:00:48]} 70. Kg3 {[%emt 0:00:12]} Qc7+ {[%emt 0:00:10]} 71. Qf4 {[%emt 0:00:44]} Qe7 {[%emt 0:00:44]} 72. Nf3 {[%emt 0:00:33]} Qe6 {[%emt 0:00:30]} 73. Ne5 {[%emt 0:00:54]} Qb3+ {[%emt 0:00:48]} 74. Kh2 {[%emt 0:00:06]} Qe6 {[%emt 0:00:07]} 75. Qe4 {[%emt 0:00:41]} Kg8 {[%emt 0:00:51]} 76. Qc4 {[%emt 0:00:38]} Qxc4 {[%emt 0:00:04]} 77. Nxc4 {[%emt 0:00:01]} Kf7 {[%emt 0:00:05]} 78. Kg3 {[%emt 0:00:13]} Kf6 {[%emt 0:00:21]} 79. Kf4 {[%emt 0:00:39]} g6 {[%emt 0:00:52]} 80. Ne3 {[%emt 0:00:52]} g5+ {[%emt 0:01:03]} 81. Ke4 {[%emt 0:00:04]} h5 {[%emt 0:00:34]} 82. Nf5 {[%emt 0:01:34]} Kg6 {[%emt 0:00:32]} 83. Ne3 {[%emt 0:00:31]} Kf6 {[%emt 0:00:06]} 84. Nf1 {[%emt 0:00:37]} Kg6 {[%emt 0:00:49]} 85. Ke5 {[%emt 0:00:27]} g4 {[%emt 0:00:47]} 86. Kf4 {[%emt 0:00:09]} Kf6 {[%emt 0:00:10]} 87. Ne3 {[%emt 0:00:25]} Kg6 {[%emt 0:00:04]} 88. Nxg4 {[%emt 0:00:32]} 1-0

[Event "FIDE Womens World Cup 2021"]
[Site "Sochi"]
[Date "2021.07.15"]
[Round "2.1"]
[White "Harika, Dronavalli"]
[Black "Aulia, Medina Warda"]
[Result "1-0"]
[ECO "C70"]
[WhiteElo "2515"]
[BlackElo "2360"]
[Annotator "ChessBase"]
[PlyCount "95"]
[EventDate "2021.07.12"]
[EventType "k.o."]
[EventCountry "RUS"]
[SourceTitle "playchess.com"]
[Source "ChessBase"]
[SourceQuality "1"]
[TimeControl "40/5400+30:1800+30"]

1. e4 {[%emt 0:00:06]} e5 {[%emt 0:00:43]} 2. Nf3 {[%emt 0:00:14]} Nc6 {[%emt 0:00:07]} 3. Bb5 {[%emt 0:00:19]} a6 {[%emt 0:00:16]} 4. Ba4 {[%emt 0:00:07]} b5 {[%emt 0:00:21]} 5. Bb3 {[%emt 0:00:11]} Na5 {[%emt 0:01:14]} 6. O-O {[%emt 0:01:18]} d6 {[%emt 0:00:14]} 7. d4 {[%emt 0:00:24]} exd4 {[%emt 0:00:20]} 8. Re1 {[%emt 0:00:57]} Nxb3 {[%emt 0:12:16]} 9. axb3 {[%emt 0:00:31]} c5 {[%emt 0:12:23]} 10. c3 {[%emt 0:00:49]} d3 {[%emt 0:00:42]} 11. Qxd3 {[%emt 0:07:04]} Be7 {[%emt 0:02:57]} 12. c4 {[%emt 0:05:04]} b4 {[%emt 0:02:53]} 13. e5 {[%emt 0:31:27]} Be6 {[%emt 0:07:46]} 14. exd6 {[%emt 0:05:37]} Qxd6 {[%emt 0:00:25]} 15. Qe4 {[%emt 0:08:09]} Ra7 {[%emt 0:08:18]} 16. Bf4 {[%emt 0:00:51]} Qb6 {[%emt 0:00:07]} 17. Ne5 {[%emt 0:06:06]} Nf6 {[%emt 0:02:00]} 18. Qc6+ {[%emt 0:00:09]} Qxc6 {[%emt 0:01:13]} 19. Nxc6 {[%emt 0:00:12]} Ra8 {[%emt 0:00:19]} 20. Nd2 {[%emt 0:01:19]} Bf8 {[%emt 0:08:59]} 21. Nb8 {[%emt 0:08:37]} a5 {[%emt 0:03:11]} 22. Nf3 {[%emt 0:07:14]} Nh5 {[%emt 0:02:52]} 23. Bc7 {[%emt 0:06:31]} Be7 {[%emt 0:07:22]} 24. Rxa5 {[%emt 0:02:14]} Rxa5 {[%emt 0:00:04]} 25. Bxa5 {[%emt 0:00:02]} Bd6 {[%emt 0:02:10]} 26. Rd1 {[%emt 0:00:40]} Be7 {[%emt 0:12:19]} 27. Nc6 {[%emt 0:00:29]} f6 {[%emt 0:00:11]} 28. Bb6 {[%emt 0:01:48]} g5 {[%emt 0:02:53]} 29. Re1 {[%emt 0:01:15]} Ng7 {[%emt 0:01:36]} 30. Nxe7 {[%emt 0:00:23]} Kxe7 {[%emt 0:00:02]} 31. Bxc5+ {[%emt 0:00:05]} Kf7 {[%emt 0:00:04]} 32. Nd4 {[%emt 0:00:13]} Rb8 {[%emt 0:00:28]} 33. Nb5 {[%emt 0:01:23]} Kg6 {[%emt 0:02:04]} 34. Bd6 {[%emt 0:00:25]} Rb7 {[%emt 0:00:24]} 35. Bf8 {[%emt 0:00:40]} Bd7 {[%emt 0:02:55]} 36. Nd6 {[%emt 0:00:07]} Ra7 {[%emt 0:00:04]} 37. Bxg7 {[%emt 0:00:34]} Kxg7 {[%emt 0:00:18]} 38. Re7+ {[%emt 0:01:09]} Kg6 {[%emt 0:02:05]} 39. f3 {[%emt 0:00:39]} Ra1+ {[%emt 0:00:08]} 40. Kf2 {[%emt 0:00:04]} Bf5 {[%emt 0:00:03]} 41. Nxf5 {[%emt 0:31:17]} Kxf5 {[%emt 0:30:12]} 42. g4+ {[%emt 0:00:45]} Kg6 {[%emt 0:00:05]} 43. Rb7 {[%emt 0:00:53]} Rb1 {[%emt 0:00:17]} 44. Rxb4 {[%emt 0:00:10]} Rxb2+ {[%emt 0:00:04]} 45. Kg3 {[%emt 0:01:23]} h5 {[%emt 0:01:27]} 46. gxh5+ {[%emt 0:00:04]} Kxh5 {[%emt 0:00:03]} 47. Rb5 {[%emt 0:00:11]} Rc2 {[%emt 0:00:55]} 48. h4 {[%emt 0:00:17]} 1-0

[Event "FIDE Womens World Cup 2021"]
[Site "Sochi"]
[Date "2021.07.15"]
[Round "2.1"]
[White "Khademalsharieh, Sarasadat"]
[Black "Padmini, Rout"]
[Result "1/2-1/2"]
[ECO "D85"]
[WhiteElo "2494"]
[BlackElo "2370"]
[Annotator "ChessBase"]
[PlyCount "29"]
[EventDate "2021.07.12"]
[EventType "k.o."]
[EventCountry "RUS"]
[SourceTitle "playchess.com"]
[Source "ChessBase"]
[SourceQuality "1"]
[TimeControl "40/5400+30:1800+30"]

1. d4 {[%emt 0:00:04]} Nf6 {[%emt 0:00:14]} 2. c4 {[%emt 0:00:09]} g6 {[%emt 0:00:31]} 3. Nc3 {[%emt 0:00:12]} d5 {[%emt 0:00:14]} 4. cxd5 {[%emt 0:00:19]} Nxd5 {[%emt 0:00:08]} 5. e4 {[%emt 0:00:11]} Nxc3 {[%emt 0:00:09]} 6. bxc3 {[%emt 0:00:06]} Bg7 {[%emt 0:00:06]} 7. Nf3 {[%emt 0:00:26]} c5 {[%emt 0:00:10]} 8. h3 {[%emt 0:00:20]} O-O {[%emt 0:01:33]} 9. Be3 {[%emt 0:00:46]} Qa5 {[%emt 0:00:41]} 10. Bd2 {[%emt 0:00:58]} Qa3 {[%emt 0:13:47]} 11. Qc1 {[%emt 0:21:54]} Qa4 {[%emt 0:04:22]} 12. Qd1 {[%emt 0:13:55]} Qa3 {[%emt 0:05:14]} 13. Qc1 {[%emt 0:01:43]} Qa4 {[%emt 0:04:27]} 14. Qd1 {[%emt 0:00:23]} Qa3 {[%emt 0:06:33]} 15. Qc1 {[%emt 0:01:06]} 1/2-1/2